bitfinex/quotes_BTCUSD_20250314
["timestamp","ask_amount","ask_price","bid_price","bid_amount"]
[1741971094526,0.13671143,84878.0,84877.0,0.249416]
[1741971094701,0.13671143,84878.0,84877.0,0.248416]
[1741971094905,0.13671143,84878.0,84877.0,0.324816]
[1741971095135,0.13671143,84878.0,84877.0,0.674316]
[1741971095342,0.13671143,84878.0,84877.0,0.817036]
[1741971095570,0.13671143,84878.0,84877.0,0.816036]
[1741971095774,4.3e-07,84878.0,84877.0,0.816036]
[1741971095954,4.3e-07,84878.0,84877.0,0.815036]
[1741971096316,4.3e-07,84878.0,84877.0,0.817036]
[1741971096724,4.3e-07,84878.0,84877.0,0.821036]
[1741971097671,4.3e-07,84878.0,84877.0,2.321036]
[1741971097872,4.3e-07,84878.0,84877.0,2.178316]
[1741971098274,4.3e-07,84878.0,84877.0,2.327236]
[1741971098475,4.3e-07,84878.0,84877.0,2.321236]
[1741971098741,4.3e-07,84878.0,84877.0,2.327236]
[1741971099322,4.3e-07,84878.0,84877.0,2.321236]
[1741971099530,4.3e-07,84878.0,84877.0,2.327236]
[1741971099889,4.3e-07,84878.0,84877.0,2.321236]
[1741971100091,4.3e-07,84878.0,84877.0,2.315236]
[1741971100287,4.3e-07,84878.0,84877.0,2.327236]
[1741971100750,4.3e-07,84878.0,84877.0,2.321236]
[1741971101002,4.3e-07,84878.0,84877.0,2.327236]
[1741971101126,4.3e-07,84878.0,84877.0,2.333236]
[1741971101558,4.3e-07,84878.0,84877.0,2.333796]
[1741971101960,4.3e-07,84878.0,84877.0,1.753416]
[1741971102131,4.3e-07,84878.0,84877.0,0.259416]
[1741971102337,4.3e-07,84878.0,84877.0,0.253416]
[1741971102477,4.3e-07,84878.0,84877.0,0.017781]
[1741971102684,4.3e-07,84878.0,84877.0,0.259416]
[1741971103127,0.26588702,84878.0,84877.0,0.006]
[1741971103548,0.01847402,84878.0,84877.0,0.244635]
[1741971103721,0.25410602,84878.0,84877.0,0.009]
[1741971103929,0.01847402,84878.0,84877.0,0.235635]
[1741971104134,0.235623,84881.0,84877.0,0.235635]
[1741971104342,0.0001693,84878.0,84877.0,0.242635]
[1741971104603,0.0001693,84878.0,84877.0,0.001]
[1741971104991,0.2358013,84878.0,84877.0,0.002]
[1741971105191,0.0001693,84878.0,84877.0,0.002]
[1741971105403,0.2475823,84878.0,84877.0,0.002]
[1741971105599,0.2475823,84878.0,84877.0,0.001]
[1741971105977,0.3306823,84878.0,84877.0,0.001]
[1741971107196,0.3306823,84878.0,84877.0,0.002]
[1741971107566,0.3306823,84878.0,84877.0,0.001]
[1741971107874,0.34522315,84878.0,84877.0,0.001]
[1741971108421,1.06412315,84878.0,84877.0,0.001]
[1741971109150,1.06412315,84878.0,84877.0,0.002]
[1741971109864,1.06412315,84878.0,84877.0,0.001]
[1741971110059,0.247462,84861.0,84860.0,0.0003386]
[1741971110449,0.0764,84861.0,84860.0,0.0003386]
[1741971110799,0.09487957,84861.0,84860.0,0.0003386]
[1741971111162,0.09487957,84861.0,84859.0,0.2140226]
[1741971111872,0.33055957,84861.0,84858.0,0.235686]
[1741971112503,0.33055857,84861.0,84858.0,0.235686]
[1741971112734,0.09487957,84861.0,84860.0,0.235682]
[1741971112939,0.09487957,84861.0,84859.0,0.235684]
[1741971113326,0.09487957,84861.0,84860.0,0.011784]
[1741971113327,0.01847957,84861.0,84860.0,0.011784]
[1741971113556,0.4139,84864.0,84863.0,0.247456]
[1741971113734,0.4139,84864.0,84863.0,0.235673]
[1741971114341,0.4139,84864.0,84862.0,0.235675]
[1741971114550,0.247459,84862.0,84860.0,0.003]
[1741971114743,0.247457,84863.0,84860.0,0.003]
[1741971114952,0.235674,84863.0,84860.0,0.002]
[1741971115173,0.4139,84864.0,84862.0,0.235676]
[1741971115377,0.4139,84864.0,84863.0,0.013783]
[1741971116066,0.0119503,84878.0,84863.0,0.013783]
[1741971116067,0.0001693,84878.0,84877.0,0.011781]
[1741971116401,0.0001693,84878.0,84877.0,0.247416]
[1741971117959,0.0001693,84878.0,84877.0,0.249416]
[1741971118197,0.0001693,84878.0,84877.0,0.331316]
[1741971118597,0.0001693,84878.0,84877.0,0.337316]
[1741971118809,0.0001693,84878.0,84877.0,1.835316]
[1741971119337,0.01621722,84898.0,84877.0,1.835316]
[1741971119338,5.2e-07,84882.0,84881.0,0.247404]
[1741971119989,5.2e-07,84882.0,84881.0,1.747404]
[1741971120600,5.2e-07,84882.0,84881.0,0.235623]
[1741971120836,5.2e-07,84882.0,84881.0,0.247404]
[1741971121043,5.2e-07,84882.0,84881.0,0.253404]
[1741971121454,5.2e-07,84882.0,84881.0,0.247404]
[1741971121838,5.2e-07,84882.0,84881.0,0.254404]
[1741971122045,5.2e-07,84882.0,84881.0,0.251404]
[1741971122460,5.2e-07,84882.0,84881.0,0.254404]
[1741971122800,5.2e-07,84882.0,84881.0,0.251404]
[1741971123774,5.2e-07,84882.0,84881.0,0.247404]
[1741971123977,5.2e-07,84882.0,84881.0,0.253404]
[1741971124580,5.2e-07,84882.0,84881.0,0.258404]
[1741971124785,5.2e-07,84882.0,84881.0,0.558404]
[1741971124989,5.2e-07,84882.0,84881.0,0.684104]
[1741971125288,5.2e-07,84882.0,84881.0,0.678104]
[1741971125834,5.2e-07,84882.0,84881.0,0.684104]
[1741971125987,5.2e-07,84882.0,84881.0,0.679104]
[1741971126190,5.2e-07,84882.0,84881.0,0.685104]
[1741971126593,8.2e-07,84914.0,84913.0,0.247311]
[1741971126820,0.00012499,84914.0,84913.0,0.390231]
[1741971127057,0.011776,84912.0,84899.0,0.011778]
[1741971127239,0.0761,84915.0,84884.0,0.00900128]
[1741971127240,0.03800099,84915.0,84908.0,0.235547]
[1741971127434,0.011776,84912.0,84900.0,0.011778]
[1741971127592,0.03484439,84917.0,84903.0,0.011778]
[1741971127795,0.03484439,84917.0,84902.0,0.011778]
[1741971127994,0.235539,84912.0,84906.0,0.011777]
[1741971128221,0.235539,84912.0,84907.0,0.235551]
[1741971128449,0.25400944,84911.0,84907.0,0.235551]
[1741971128666,0.26578644,84911.0,84907.0,0.235551]
[1741971128978,0.01846844,84911.0,84910.0,0.011777]
[1741971129994,0.01863774,84911.0,84905.0,0.235555]
[1741971130232,0.011777,84909.0,84904.0,0.14296417]
[1741971130401,0.247321,84910.0,84907.0,0.001]
[1741971130734,0.011777,84908.0,84907.0,0.001]
[1741971130932,0.247334,84905.0,84904.0,0.00012417]
[1741971132015,0.235557,84905.0,84904.0,0.00012417]
[1741971132228,0.247333,84906.0,84904.0,0.00212417]
[1741971132440,0.535531,84915.0,84909.0,0.235546]
[1741971132647,0.235538,84912.0,84909.0,0.235546]
[1741971132965,0.235538,84912.0,84904.0,0.01390217]
[1741971132966,0.235551,84908.0,84904.0,0.23768317]
[1741971133383,0.235552,84907.0,84904.0,0.23768317]
[1741971133690,0.235555,84906.0,84904.0,0.00212417]
[1741971133890,0.235553,84907.0,84904.0,0.24068417]
[1741971134041,0.247324,84909.0,84904.0,0.00312417]
[1741971134250,0.23555,84908.0,84905.0,0.235556]
[1741971134606,0.247331,84906.0,84904.0,0.00212417]
[1741971134733,0.01863774,84911.0,84910.0,0.24732]
[1741971135137,0.0001693,84911.0,84910.0,0.24732]
[1741971135337,0.0001693,84911.0,84905.0,0.002]
[1741971135540,0.011777,84907.0,84905.0,0.003]
[1741971135764,0.247331,84906.0,84905.0,0.002]
[1741971136166,0.56187185,84906.0,84905.0,0.002]
[1741971136523,0.56187485,84905.0,84904.0,0.00012417]
[1741971137973,0.04265303,84906.0,84904.0,0.00012417]
[1741971138180,0.04265303,84906.0,84905.0,0.247334]
[1741971138181,0.01847063,84906.0,84905.0,0.247334]
[1741971138590,0.01847063,84906.0,84905.0,0.235557]
[1741971138961,0.247334,84905.0,84904.0,0.00012417]
[1741971142267,0.26187485,84905.0,84904.0,0.00012417]
[1741971142552,0.247334,84905.0,84904.0,0.00012417]
[1741971143051,0.01847063,84906.0,84905.0,0.235557]
[1741971143252,0.01847063,84906.0,84905.0,0.390094]
[1741971144478,0.01847063,84906.0,84904.0,0.00046257]
[1741971144679,0.247334,84905.0,84904.0,0.00046257]
[1741971145085,0.235549,84909.0,84904.0,0.00046257]
[1741971145288,0.01846951,84905.0,84904.0,0.23602257]
[1741971145492,0.01846951,84905.0,84904.0,0.00046257]
[1741971145690,0.01846951,84905.0,84904.0,0.24780057]
[1741971145889,0.01846951,84905.0,84904.0,0.23602257]
[1741971146318,0.235546,84909.0,84905.0,0.235554]
[1741971146813,0.0001693,84911.0,84910.0,0.24732]
[1741971148540,0.0001693,84911.0,84905.0,0.002]
[1741971148758,0.235552,84907.0,84905.0,0.002]
[1741971148965,0.011777,84908.0,84905.0,0.002]
[1741971149198,0.235549,84908.0,84904.0,0.23602157]
[1741971149397,0.01846709,84910.0,84909.0,0.235546]
[1741971149749,0.01846709,84910.0,84909.0,0.317346]
[1741971149980,0.01846709,84910.0,84909.0,0.329123]
[1741971150206,9e-08,84910.0,84909.0,0.329123]
[1741971150327,0.0001693,84911.0,84910.0,0.24732]
[1741971150328,3.9e-07,84911.0,84910.0,0.24732]
[1741971150534,5.9e-07,84915.0,84910.0,0.25132]
[1741971150775,5.9e-07,84915.0,84914.0,0.247308]
[1741971151794,5.9e-07,84920.0,84919.0,0.247293]
[1741971152180,5.9e-07,84920.0,84919.0,0.389973]
[1741971152602,6.9e-07,84923.0,84922.0,0.547285]
[1741971152935,0.01926368,84949.0,84931.0,0.247259]
[1741971152936,7.9e-07,84932.0,84931.0,0.247259]
[1741971153146,7.9e-07,84932.0,84931.0,0.623259]
[1741971154312,7.9e-07,84932.0,84931.0,0.623259]
[1741971154513,7.9e-07,84932.0,84931.0,0.629259]
[1741971154827,7.9e-07,84932.0,84931.0,0.69309985]
[1741971155026,7.9e-07,84932.0,84931.0,0.69809985]
[1741971155227,0.0001691,84946.0,84945.0,0.247218]
[1741971155559,0.00029325,84946.0,84945.0,0.327218]
[1741971155723,0.00029325,84946.0,84945.0,0.247218]
[1741971155921,0.00029325,84946.0,84945.0,0.154452]
[1741971156148,0.00029325,84946.0,84943.0,0.011772]
[1741971156348,0.00029325,84946.0,84945.0,0.011772]
[1741971156749,0.00029325,84946.0,84945.0,0.006]
[1741971156971,0.00029325,84946.0,84945.0,0.017772]
[1741971158102,0.00029325,84946.0,84945.0,0.011772]
[1741971158282,0.00029325,84946.0,84945.0,0.154412]
[1741971159117,0.00029325,84946.0,84945.0,0.158412]
[1741971159523,0.00029325,84946.0,84945.0,0.162412]
[1741971159749,0.00029325,84946.0,84945.0,0.158412]
[1741971159879,0.00029325,84946.0,84945.0,0.163412]
[1741971161045,0.01206525,84946.0,84945.0,0.009]
[1741971161410,0.03052433,84946.0,84945.0,0.009]
[1741971161828,0.03052433,84946.0,84945.0,0.005]
[1741971162034,0.011774,84930.0,84926.0,0.235497]
[1741971162236,0.011774,84927.0,84923.0,0.14264]
[1741971162581,0.011773,84934.0,84927.0,0.247269]
[1741971162868,0.011774,84932.0,84927.0,0.235495]
[1741971163067,0.02822597,84934.0,84927.0,0.235495]
[1741971163271,0.01846355,84933.0,84932.0,0.011774]
[1741971164681,0.0008,84949.0,84945.0,0.247218]
[1741971165032,0.01875463,84946.0,84945.0,0.247218]
[1741971166190,0.235446,84945.0,84944.0,0.1426]
[1741971166397,0.01875463,84946.0,84940.0,0.011773]
[1741971166569,0.01875463,84946.0,84945.0,0.005]
[1741971166775,0.26596963,84946.0,84945.0,0.005]
[1741971166982,0.235458,84941.0,84938.0,0.235465]
[1741971167180,0.01875463,84946.0,84942.0,0.235454]
[1741971167493,0.01875463,84946.0,84945.0,0.247218]
[1741971168280,0.01875463,84946.0,84945.0,0.251218]
[1741971168478,0.01875463,84946.0,84945.0,0.247218]
[1741971168806,0.01875463,84946.0,84945.0,1.747218]
[1741971169009,0.01875463,84946.0,84945.0,0.249218]
[1741971169150,0.01875463,84946.0,84945.0,0.247218]
[1741971169359,0.01875463,84946.0,84945.0,0.252218]
[1741971169986,0.01875463,84946.0,84945.0,0.258218]
[1741971170187,0.01875463,84946.0,84945.0,0.253218]
[1741971170393,0.01875463,84946.0,84945.0,0.247218]
[1741971170589,0.01875463,84946.0,84945.0,0.316446]
[1741971170809,0.01875463,84946.0,84945.0,0.005]
[1741971171010,0.03052663,84946.0,84945.0,0.005]
[1741971171213,0.26596963,84946.0,84945.0,0.005]
[1741971171937,0.235476,84935.0,84928.0,0.011774]
[1741971172107,0.235477,84934.0,84930.0,0.235486]
[1741971172318,0.235449,84944.0,84937.0,0.011773]
[1741971172491,0.00029325,84946.0,84942.0,0.235454]
[1741971172696,0.235449,84944.0,84939.0,0.235463]
[1741971173096,0.235449,84944.0,84940.0,0.23546]
[1741971173294,0.011772,84943.0,84938.0,0.235465]
[1741971173545,0.235453,84943.0,84940.0,0.23546]
[1741971173753,0.01875395,84946.0,84945.0,0.247218]
[1741971175297,0.01875395,84946.0,84945.0,0.235446]
[1741971175629,0.03052595,84946.0,84932.0,0.235482]
[1741971175831,0.011772,84941.0,84934.0,0.011773]
[1741971176032,0.011773,84936.0,84930.0,0.235485]
[1741971176242,0.011773,84940.0,84934.0,0.011773]
[1741971176464,0.011773,84940.0,84934.0,0.235475]
[1741971176676,0.235471,84937.0,84932.0,0.235482]
[1741971177009,0.247236,84939.0,84937.0,0.235468]
[1741971177010,0.0184614,84939.0,84937.0,0.235468]
[1741971177222,0.0184614,84939.0,84938.0,0.235465]
[1741971177425,4e-07,84939.0,84938.0,0.27186479]
[1741971177674,0.00029325,84946.0,84945.0,0.247218]
[1741971178093,0.00029325,84946.0,84945.0,0.235446]
[1741971178298,0.00029325,84946.0,84945.0,0.247218]
[1741971179427,0.00029325,84946.0,84945.0,0.249218]
[1741971180053,0.00029325,84946.0,84945.0,0.247218]
[1741971180248,0.00029325,84946.0,84945.0,0.250218]
[1741971180651,0.00029325,84946.0,84945.0,0.253218]
[1741971181322,0.00029325,84946.0,84945.0,0.241446]
[1741971181542,0.00029325,84946.0,84945.0,0.006]
[1741971181938,0.01206525,84946.0,84945.0,0.006]
[1741971182082,0.00029325,84946.0,84945.0,0.006]
[1741971182459,0.00029325,84946.0,84945.0,0.253218]
[1741971182680,0.00029325,84946.0,84945.0,0.247218]
[1741971182888,0.00029325,84946.0,84945.0,0.295918]
[1741971183980,0.00029325,84946.0,84945.0,0.301918]
[1741971185190,0.00029325,84946.0,84945.0,0.401338]
[1741971185394,0.00029325,84946.0,84945.0,0.400338]
[1741971186071,0.00029325,84946.0,84945.0,0.406338]
[1741971186277,0.00029325,84946.0,84945.0,0.400338]
[1741971186473,8.5e-07,84954.0,84953.0,0.247195]
[1741971187080,0.01543481,84980.0,84973.0,0.011768]
[1741971187290,0.00041399,84981.0,84978.0,0.235352]
[1741971187443,0.235342,84983.0,84976.0,0.235354]
[1741971187658,0.235353,84979.0,84973.0,0.235366]
[1741971187853,0.235346,84981.0,84973.0,0.235366]
[1741971187854,0.011767,84983.0,84975.0,0.235362]
[1741971188055,0.235348,84981.0,84976.0,0.235357]
[1741971188301,0.26289946,84983.0,84975.0,0.235363]
[1741971188510,0.26289946,84983.0,84976.0,0.23536]
[1741971188680,0.235345,84982.0,84976.0,0.23536]
[1741971188905,0.011767,84982.0,84968.0,0.011769]
[1741971189109,0.011767,84977.0,84965.0,0.011769]
[1741971189328,0.23535,84980.0,84974.0,0.235363]
[1741971189534,0.235352,84979.0,84975.0,0.235363]
[1741971189731,0.011767,84979.0,84968.0,0.235381]
[1741971189892,0.011769,84968.0,84959.0,0.01177]
[1741971190109,0.23541,84958.0,84953.0,0.235423]
[1741971190315,0.01177,84956.0,84946.0,0.235442]
[1741971190509,0.011771,84949.0,84935.0,0.011773]
[1741971190814,0.011771,84953.0,84944.0,0.011772]
[1741971191015,0.011772,84945.0,84937.0,0.011773]
[1741971191214,0.011772,84945.0,84937.0,0.24724]
[1741971191523,0.03023152,84946.0,84940.0,0.011773]
[1741971191728,0.011772,84942.0,84938.0,0.235464]
[1741971191918,0.235458,84941.0,84937.0,0.00041399]
[1741971192124,0.011772,84942.0,84938.0,0.235465]
[1741971192321,0.247226,84943.0,84939.0,0.23546]
[1741971192524,0.235456,84942.0,84938.0,0.235463]
[1741971192757,0.235456,84942.0,84937.0,0.01218699]
[1741971192758,0.011773,84939.0,84937.0,0.00041399]
[1741971192963,0.235465,84938.0,84937.0,0.00041399]
[1741971193572,0.247232,84941.0,84937.0,0.23588199]
[1741971193776,0.2,84995.0,84937.0,0.23588199]
[1741971193777,0.011771,84949.0,84944.0,0.235449]
[1741971193970,0.0236261,84948.0,84937.0,0.23588199]
[1741971194172,0.247238,84938.0,84937.0,0.00041399]
[1741971194527,0.02705384,84947.0,84940.0,0.011773]
[1741971194719,0.26567452,84946.0,84942.0,0.235452]
[1741971194851,0.011772,84941.0,84937.0,0.00041399]
[1741971195227,0.011772,84941.0,84937.0,0.00541399]
[1741971195228,0.235465,84938.0,84937.0,0.00541399]
[1741971195508,0.235465,84938.0,84937.0,0.00341399]
[1741971195509,0.247238,84938.0,84937.0,0.00341399]
[1741971195709,0.247238,84938.0,84937.0,0.00041399]
[1741971196066,0.247238,84938.0,84937.0,0.00241399]
[1741971196280,0.03023152,84946.0,84940.0,0.011773]
[1741971196506,0.01845952,84946.0,84942.0,0.011772]
[1741971196885,0.247218,84945.0,84939.0,0.247234]
[1741971197014,0.4139,84950.0,84946.0,0.247215]
[1741971197217,0.4139,84950.0,84949.0,0.247206]
[1741971197617,0.4139,84950.0,84949.0,1.747206]
[1741971198023,0.01846005,84954.0,84953.0,0.247195]
[1741971198423,0.01846005,84954.0,84949.0,1.747206]
[1741971198607,0.235408,84959.0,84950.0,0.011771]
[1741971198815,0.01177,84961.0,84951.0,0.011771]
[1741971199053,0.235404,84960.0,84951.0,0.011771]
[1741971199273,0.235418,84955.0,84949.0,1.516771]
[1741971199435,0.235415,84956.0,84950.0,0.235432]
[1741971199634,0.235424,84953.0,84947.0,0.23544]
[1741971199839,0.235424,84953.0,84926.0,0.0809]
[1741971199840,0.23546,84940.0,84926.0,0.0809]
[1741971200034,0.14608,84949.0,84943.0,0.011772]
[1741971200237,0.235438,84948.0,84945.0,0.235446]
[1741971200437,0.011771,84952.0,84945.0,0.235444]
[1741971200438,0.247198,84952.0,84945.0,0.235444]
[1741971200641,0.4139,84953.0,84951.0,0.247199]
[1741971201565,0.4139,84953.0,84952.0,0.011771]
[1741971202118,0.4139,84953.0,84951.0,0.247199]
[1741971202326,0.4139,84953.0,84949.0,0.011771]
[1741971202523,0.4139,84953.0,84951.0,0.001]
[1741971203153,0.4139,84953.0,84952.0,0.001]
[1741971203356,0.235402,84961.0,84956.0,0.235413]
[1741971203553,0.235408,84959.0,84954.0,0.23542]
[1741971203774,0.01177,84959.0,84951.0,0.003]
[1741971204056,0.235427,84952.0,84951.0,0.003]
[1741971204471,0.247198,84952.0,84951.0,0.003]
[1741971204872,0.247198,84952.0,84951.0,0.001]
[1741971205310,0.235444,84946.0,84942.0,0.235454]
[1741971206014,0.23546,84940.0,84934.0,0.011773]
[1741971206153,0.23546,84940.0,84932.0,0.0003392]
[1741971206154,0.247233,84940.0,84932.0,0.0003392]
[1741971206356,0.661133,84940.0,84932.0,0.0003392]
[1741971207036,1.049133,84940.0,84932.0,0.0003392]
[1741971207198,0.552238,84938.0,84937.0,9.9e-07]
[1741971207516,0.56679285,84933.0,84932.0,1.9e-07]
[1741971207721,0.56679285,84933.0,84932.0,0.00012434]
[1741971207722,1.72837285,84933.0,84932.0,0.00012434]
[1741971208337,1.72837285,84933.0,84932.0,0.00012434]
[1741971208510,0.235546,84909.0,84907.0,0.11846354]
[1741971208937,0.011774,84931.0,84925.0,0.011775]
[1741971209114,0.14504,84928.0,84923.0,0.011775]
[1741971209317,0.235497,84927.0,84924.0,0.235504]
[1741971209518,0.235499,84926.0,84922.0,0.235507]
[1741971209744,0.392308,84928.0,84924.0,0.011775]
[1741971209745,0.14504,84928.0,84924.0,0.011775]
[1741971210082,0.235483,84932.0,84928.0,0.235493]
[1741971210265,1.16158,84933.0,84927.0,0.011774]
[1741971210487,0.74768,84933.0,84932.0,0.011774]
[1741971211024,0.98316,84933.0,84927.0,0.011774]
[1741971211244,0.011774,84926.0,84918.0,0.011776]
[1741971211444,0.235489,84930.0,84924.0,0.011775]
[1741971211670,0.247261,84931.0,84926.0,0.011774]
[1741971211875,0.011772,84943.0,84938.0,0.235465]
[1741971212091,0.247236,84939.0,84932.0,0.011774]
[1741971212287,0.00012408,84941.0,84940.0,0.011773]
[1741971212847,0.00012408,84941.0,84936.0,0.247242]
[1741971213092,0.011774,84932.0,84925.0,0.235501]
[1741971213292,0.011774,84932.0,84919.0,0.011775]
[1741971213293,0.011774,84928.0,84919.0,0.011775]
[1741971213497,0.01189608,84941.0,84940.0,0.001]
[1741971213673,0.00012408,84941.0,84940.0,0.011773]
[1741971213877,0.00012408,84941.0,84940.0,0.012773]
[1741971214084,0.00012408,84941.0,84940.0,0.001]
[1741971215130,0.01189608,84941.0,84940.0,0.001]
[1741971215341,0.23546,84940.0,84935.0,0.235473]
[1741971215696,0.235466,84938.0,84936.0,0.001]
[1741971216484,0.011773,84936.0,84925.0,0.011775]
[1741971216695,0.23548,84933.0,84929.0,0.235488]
[1741971216909,0.247234,84940.0,84933.0,0.011773]
[1741971217111,0.235463,84939.0,84936.0,0.002]
[1741971217376,0.011773,84937.0,84936.0,0.002]
[1741971217522,0.23543,84951.0,84940.0,0.247233]
[1741971217736,0.759531,84950.0,84940.0,0.247233]
[1741971217946,0.235436,84949.0,84940.0,0.247233]
[1741971218168,0.759531,84950.0,84940.0,0.247233]
[1741971218340,0.74776,84950.0,84940.0,0.247233]
[1741971218983,0.235406,84960.0,84940.0,0.247233]
[1741971219149,0.235408,84959.0,84940.0,0.248233]
[1741971219349,0.235406,84960.0,84940.0,0.248233]
[1741971219564,0.235406,84960.0,84940.0,0.249233]
[1741971219758,0.01177,84959.0,84940.0,0.249233]
[1741971219962,0.235424,84953.0,84940.0,0.249233]
[1741971220159,0.235424,84953.0,84940.0,0.248233]
[1741971220442,0.235424,84953.0,84940.0,0.253233]
[1741971220772,0.23542,84955.0,84940.0,0.253233]
[1741971221110,0.235411,84958.0,84940.0,0.253233]
[1741971221257,0.235413,84957.0,84940.0,0.253233]
[1741971221451,0.01177,84958.0,84940.0,0.252233]
[1741971221672,0.01177,84958.0,84940.0,0.256233]
[1741971221877,0.235365,84975.0,84940.0,0.256233]
[1741971222084,0.011768,84969.0,84940.0,0.256233]
[1741971222237,0.235384,84968.0,84940.0,0.256233]
[1741971222442,0.247148,84969.0,84940.0,0.256233]
[1741971222743,0.0157594,84967.0,84940.0,0.626933]
[1741971222957,8e-08,84941.0,84940.0,0.674033]
[1741971223214,8e-08,84941.0,84940.0,0.680033]
[1741971224179,8e-08,84941.0,84940.0,0.674033]
[1741971224769,8e-08,84941.0,84940.0,0.86314888]
[1741971224966,0.012566,84989.0,84982.0,0.24711]
[1741971224967,0.0008,84989.0,84982.0,0.24711]
[1741971225379,0.00058349,84983.0,84974.0,0.14504]
[1741971225782,0.07058349,84983.0,84974.0,0.14504]
[1741971226181,0.235354,84979.0,84975.0,0.14496]
[1741971226389,0.235354,84979.0,84968.0,0.0832]
[1741971226390,0.011767,84977.0,84968.0,0.0832]
[1741971226622,0.235369,84973.0,84969.0,0.14492]
[1741971226823,0.011768,84970.0,84969.0,0.14492]
[1741971227066,0.011769,84968.0,84958.0,0.0783]
[1741971227247,0.235407,84959.0,84958.0,0.2233]
[1741971227451,0.235407,84959.0,84958.0,0.0783]
[1741971227645,0.235421,84954.0,84953.0,0.14496]
[1741971227883,0.235406,84960.0,84954.0,0.235418]
[1741971228171,0.011768,84973.0,84958.0,0.01177]
[1741971228324,0.235391,84965.0,84961.0,0.2354]
[1741971228539,0.0001695,84983.0,84961.0,0.2354]
[1741971228540,0.0001695,84983.0,84982.0,0.087667]
[1741971228737,0.0001695,84983.0,84982.0,0.46801]
[1741971228968,0.00058349,84983.0,84982.0,0.2209]
[1741971229295,0.00058349,84983.0,84982.0,0.39227]
[1741971229631,0.0001695,85008.0,84999.0,0.32996]
[1741971229826,0.32975312,85000.0,84999.0,0.475]
[1741971230032,0.32975312,85000.0,84999.0,0.22794]
[1741971230243,0.32975312,85000.0,84999.0,0.39226]
[1741971231668,0.32975312,85000.0,84999.0,0.39526]
[1741971231979,0.32975312,85000.0,84999.0,0.25306]
[1741971232357,0.32975312,85000.0,84999.0,0.25006]
[1741971232504,0.32975312,85000.0,84999.0,0.25506]
[1741971232703,0.32975312,85000.0,84999.0,0.25006]
[1741971233440,0.32975312,85000.0,84999.0,0.25606]
[1741971233803,0.32975312,85000.0,84999.0,0.25006]
[1741971234265,0.32975312,85000.0,84999.0,0.25306]
[1741971234697,0.32975312,85000.0,84999.0,0.25606]
[1741971235045,0.32975312,85000.0,84999.0,0.39786]
[1741971235431,1.2e-07,85000.0,84999.0,0.47736]
[1741971235627,0.07000012,85000.0,84999.0,0.47736]
[1741971236028,0.07000012,85000.0,84999.0,0.48236]
[1741971236029,1.2e-07,85000.0,84999.0,0.48236]
[1741971236235,1.2e-07,85000.0,84999.0,0.32656]
[1741971236392,1.2e-07,85000.0,84999.0,0.47144]
[1741971236591,1.2e-07,85000.0,84999.0,0.47744]
[1741971237012,1.2e-07,85000.0,84999.0,0.47144]
[1741971237432,1.2e-07,85000.0,84999.0,0.51714]
[1741971237637,1.2e-07,85000.0,84999.0,2.02314]
[1741971237868,1.2e-07,85000.0,84999.0,2.02914]
[1741971238073,1.2e-07,85000.0,84999.0,2.01714]
[1741971238275,6.2e-07,85008.0,85007.0,0.247037]
[1741971238447,6.2e-07,85008.0,85007.0,0.323837]
[1741971238848,1.2e-07,85017.0,85016.0,0.247011]
[1741971239014,1.2e-07,85017.0,85016.0,0.468691]
[1741971239217,1.2e-07,85017.0,85016.0,0.514991]
[1741971239660,1.2e-07,85026.0,85025.0,0.011761]
[1741971239814,0.00012414,85026.0,85025.0,0.011761]
[1741971240214,1.4e-07,85026.0,85025.0,0.01293679]
[1741971240422,1.4e-07,85026.0,85025.0,0.02868778]
[1741971241068,1.4e-07,85026.0,85025.0,1.59253679]
[1741971241400,1.4e-07,85026.0,85025.0,1.662561]
[1741971241631,1.4e-07,85026.0,85025.0,0.017761]
[1741971242172,1.4e-07,85026.0,85025.0,0.006]
[1741971242379,1.4e-07,85026.0,85025.0,0.017761]
[1741971242641,1.4e-07,85026.0,85025.0,0.023761]
[1741971242967,1.4e-07,85026.0,85025.0,0.011761]
[1741971243418,0.00016964,85026.0,85025.0,0.017761]
[1741971243949,0.00016964,85026.0,85025.0,0.011761]
[1741971244335,0.00016964,85026.0,85025.0,0.102261]
[1741971244510,6.4e-07,85026.0,85025.0,0.10343689]
[1741971244720,6.4e-07,85026.0,85025.0,0.102261]
[1741971245290,6.4e-07,85026.0,85025.0,0.09943688]
[1741971245493,6.4e-07,85026.0,85025.0,0.104261]
[1741971245700,6.4e-07,85026.0,85025.0,0.09943688]
[1741971246302,6.4e-07,85026.0,85025.0,0.147861]
[1741971246507,6.4e-07,85026.0,85025.0,0.153861]
[1741971246756,6.4e-07,85026.0,85025.0,0.023761]
[1741971246966,6.4e-07,85026.0,85025.0,0.169841]
[1741971247166,6.4e-07,85026.0,85025.0,0.006]
[1741971247357,6.4e-07,85026.0,85021.0,0.011761]
[1741971247575,6.4e-07,85026.0,85024.0,0.235227]
[1741971247756,0.24698364,85026.0,85025.0,0.012]
[1741971247952,6.4e-07,85026.0,85025.0,0.012]
[1741971248155,6.4e-07,85026.0,85025.0,0.006]
[1741971248566,6.4e-07,85026.0,85025.0,0.009]
[1741971248735,0.23522264,85026.0,85025.0,0.009]
[1741971249154,6.4e-07,85026.0,85025.0,0.006]
[1741971249425,0.24698364,85026.0,85025.0,0.006]
[1741971249636,6.4e-07,85026.0,85025.0,0.252985]
[1741971249771,6.4e-07,85029.0,85028.0,0.246976]
[1741971251298,0.01176064,85029.0,85025.0,0.381224]
[1741971251499,6.4e-07,85029.0,85028.0,0.011]
[1741971251864,0.24697364,85029.0,85028.0,0.011]
[1741971252270,0.01176064,85029.0,85028.0,0.006]
[1741971252477,0.24697364,85029.0,85028.0,0.006]
[1741971252672,6.4e-07,85029.0,85028.0,0.01]
[1741971252913,6.4e-07,85029.0,85028.0,0.250976]
[1741971253119,6.4e-07,85029.0,85028.0,0.255976]
[1741971253615,6.4e-07,85029.0,85028.0,0.250976]
[1741971253785,6.4e-07,85029.0,85028.0,0.235216]
[1741971253995,6.4e-07,85029.0,85028.0,0.004]